bitfinex/quotes_ETHUSD_20250608
["timestamp","ask_amount","ask_price","bid_price","bid_amount"]
[1749385687779,1.26950248,2510.7,2510.6,3.98302969]
[1749385688083,0.94697232,2510.7,2510.6,3.98302969]
[1749385688982,1.49697232,2510.7,2510.6,3.98302969]
[1749385689556,0.55,2510.7,2510.6,3.98302969]
[1749385689953,0.33275306,2510.8,2510.7,3.98295296]
[1749385690165,2.231,2511.0,2510.9,3.9826357]
[1749385690358,0.55,2510.9,2510.2,16.7864]
[1749385690553,0.55,2510.7,2510.6,3.98303031]
[1749385690759,0.55,2510.9,2510.6,3.98303031]
[1749385690979,0.55,2510.7,2510.6,3.98303031]
[1749385691494,0.55,2510.9,2510.6,3.98303031]
[1749385691691,0.55,2510.7,2510.6,3.98303031]
[1749385692079,0.55,2510.9,2510.6,3.98303031]
[1749385693000,0.94471563,2510.8,2510.6,3.98303031]
[1749385693207,1.681,2511.0,2510.6,3.98303031]
[1749385693387,1.49449382,2510.9,2510.7,3.98294466]
[1749385693590,0.55,2510.9,2510.7,3.98294466]
[1749385694095,0.94447549,2510.8,2510.7,3.98294466]
[1749385694269,0.55,2510.7,2510.6,3.98300093]
[1749385694470,0.55,2510.9,2510.7,3.9829166]
[1749385694698,0.94431683,2510.8,2510.7,3.9829166]
[1749385694898,0.55,2510.7,2510.6,3.98304375]
[1749385695390,0.55,2510.9,2510.8,3.98279432]
[1749385695568,1.49415944,2510.9,2510.8,3.98279432]
[1749385696197,1.49415944,2510.9,2510.7,3.98289688]
[1749385696400,0.55,2510.9,2510.8,3.98279432]
[1749385696605,1.49411834,2510.9,2510.8,3.98279432]
[1749385697693,0.55,2510.9,2510.8,3.98279432]
[1749385697896,0.55,2511.0,2510.9,3.98261244]
[1749385698077,1.49393472,2511.0,2510.9,3.98261244]
[1749385698408,0.55,2511.0,2510.9,3.98261244]
[1749385698629,0.55,2511.0,2510.7,3.98290466]
[1749385698988,0.55,2511.0,2510.8,3.98279432]
[1749385699789,0.55,2511.0,2510.9,3.9826357]
[1749385699997,1.49408907,2511.0,2510.8,3.98271227]
[1749385700278,0.55,2511.0,2510.8,3.98271227]
[1749385700480,0.55,2511.0,2510.6,3.98298352]
[1749385700713,0.94398592,2510.9,2510.5,6.495]
[1749385700914,1.2540483,2511.0,2510.5,6.495]
[1749385700915,1.2540483,2511.0,2510.6,3.98302976]
[1749385701097,0.94416307,2510.9,2510.7,3.98293876]
[1749385701297,1.2540483,2511.0,2510.7,3.98293876]
[1749385701534,0.94415401,2510.9,2510.7,3.98293876]
[1749385701698,1.2540483,2511.0,2510.7,3.98293876]
[1749385702014,0.55,2510.6,2510.3,3.98350522]
[1749385702218,0.55,2510.6,2509.9,6.87452962]
[1749385702219,0.55,2510.6,2509.9,2.89041541]
[1749385702378,0.55,2510.4,2509.9,2.89041541]
[1749385702578,0.55,2510.4,2509.9,6.87462335]
[1749385702778,0.55,2510.4,2510.0,3.98399693]
[1749385702978,1.2490996,2510.4,2510.0,3.98399693]
[1749385703205,1.2490996,2510.4,2510.1,3.98386042]
[1749385704415,0.55,2510.4,2510.1,3.98386042]
[1749385704813,0.55,2510.2,2510.1,3.98386042]
[1749385705684,0.55,2510.4,2510.2,3.9836279]
[1749385705837,1.49625129,2510.3,2510.2,3.9836279]
[1749385706208,0.55,2510.2,2509.9,2.89041541]
[1749385706544,0.55,2510.4,2510.1,3.98390502]
[1749385706743,0.55,2510.2,2510.1,3.98390502]
[1749385707054,1.3064,2510.3,2509.9,2.89041541]
[1749385707337,0.55,2510.1,2509.9,6.87460596]
[1749385707745,0.21891531,2510.2,2509.9,6.87460596]
[1749385707746,0.76891531,2510.2,2509.9,6.87460596]
[1749385707941,1.49703342,2510.1,2509.9,6.87460596]
[1749385708122,0.55,2510.1,2509.9,6.87460596]
[1749385708333,0.55,2510.1,2509.9,2.89041541]
[1749385708527,1.49707171,2510.0,2509.9,6.87463788]
[1749385708729,1.49705973,2510.0,2509.9,6.87463788]
[1749385709447,1.49705973,2510.0,2509.9,2.89041541]
[1749385709649,2.27165973,2510.0,2509.9,2.89041541]
[1749385710922,2.60441279,2510.0,2509.9,2.89041541]
[1749385711122,3.04167938,2510.0,2509.9,2.89041541]
[1749385712113,4.72367938,2510.0,2509.9,2.89041541]
[1749385712512,5.90775558,2510.0,2509.9,2.89041541]
[1749385712712,4.72367938,2510.0,2509.9,2.89041541]
[1749385712914,5.90775558,2510.0,2509.9,2.89041541]
[1749385713356,4.72367938,2510.0,2509.9,2.89041541]
[1749385714270,8.70774312,2510.0,2509.9,2.89041541]
[1749385715173,1.3212,2509.8,2509.3,3.98516016]
[1749385715342,1.3212,2509.8,2509.1,10.48347002]
[1749385715343,0.55,2509.6,2509.4,3.98500195]
[1749385715546,1.49705973,2509.5,2509.4,3.98500195]
[1749385715983,1.3212,2509.4,2509.2,3.98525012]
[1749385716846,1.3212,2509.4,2509.1,3.98544276]
[1749385717031,0.55,2509.2,2509.0,3.98550098]
[1749385717232,0.55,2509.3,2509.1,3.9854928]
[1749385717432,0.55,2509.3,2508.7,6.5]
[1749385717783,0.9464549,2509.2,2509.0,3.98560098]
[1749385718082,0.55,2509.2,2509.0,3.98560098]
[1749385722047,0.88275306,2509.2,2509.0,3.98560098]
[1749385723166,0.88275306,2509.2,2508.9,3.98572907]
[1749385723387,0.88275306,2509.2,2508.4,0.7717]
[1749385723388,0.55,2509.0,2508.4,0.7717]
[1749385723556,0.55,2509.0,2508.8,3.98594021]
[1749385723891,0.88275306,2509.0,2508.7,3.98608723]
[1749385724042,0.55,2508.8,2508.7,3.98608723]
[1749385724391,0.55,2508.8,2508.6,3.98627224]
[1749385724608,0.55,2508.8,2508.7,3.98612827]
[1749385725112,0.55,2508.8,2508.5,3.98637794]
[1749385725259,0.55,2508.6,2508.5,3.98637794]
[1749385727401,0.55,2508.7,2508.6,3.98628717]
[1749385731596,0.55,2508.9,2508.8,3.98596938]
[1749385732164,1.49531032,2508.9,2508.8,3.98596938]
[1749385732797,0.55,2508.9,2508.8,3.98596938]
[1749385733277,1.49547126,2508.9,2508.8,3.98596938]
[1749385734083,0.55,2508.9,2508.8,3.98596938]
[1749385737323,1.49679032,2508.9,2508.8,3.98596938]
[1749385741722,1.49679032,2508.9,2508.8,4.79476938]
[1749385741919,0.55,2508.9,2508.8,4.79476938]
[1749385743345,1.49898726,2508.9,2508.8,4.79476938]
[1749385743502,0.88275306,2509.0,2508.9,3.98581051]
[1749385743839,1.49904022,2509.0,2508.9,3.98581051]
[1749385757753,0.94904022,2509.0,2508.9,19.98581051]
[1749385757946,0.94904022,2509.0,2508.9,20.77551051]
[1749385767397,1.49904022,2509.0,2508.9,19.98581051]
[1749385776805,1.49904022,2509.0,2508.9,26.46381051]
[1749385776972,0.94904022,2509.0,2508.9,26.46381051]
[1749385777182,0.94904022,2509.0,2508.9,27.23821051]
[1749385777406,0.55,2509.4,2508.9,27.23821051]
[1749385777407,1.18024721,2509.4,2509.3,3.98517514]
[1749385777708,2.13102282,2509.4,2509.3,3.98517514]
[1749385778113,2.68102282,2509.4,2509.3,3.98517514]
[1749385785021,1.50077561,2509.4,2509.3,3.98517514]
[1749385785217,2.6894575,2509.4,2509.3,3.98517514]
[1749385785523,1.50077561,2509.4,2509.3,3.98517514]
[1749385785840,1.50105947,2509.4,2509.3,3.98517514]
[1749385788190,2.69033985,2509.4,2509.3,3.98517514]
[1749385788519,0.95105947,2509.4,2509.3,3.98517514]
[1749385792830,1.50105947,2509.4,2509.3,3.98517514]
[1749385793036,2.69033985,2509.4,2509.3,3.98517514]
[1749385793336,1.50105947,2509.4,2509.3,10.45217514]
[1749385793920,1.50105947,2509.4,2509.3,10.45117514]
[1749385794738,2.69033985,2509.4,2509.3,10.45117514]
[1749385795695,2.69033985,2509.4,2509.3,3.98517514]
[1749385797916,1.50105947,2509.4,2509.3,3.98517514]
[1749385798158,2.69033985,2509.4,2509.3,3.98517514]
[1749385803620,1.369,2509.3,2508.8,0.7578]
[1749385803944,2.6897038,2509.2,2509.1,3.98541287]
[1749385804257,0.819,2509.1,2509.0,3.9855614]
[1749385804552,0.55,2509.0,2508.9,3.98572423]
[1749385804855,1.50105947,2509.0,2508.9,3.98572423]
[1749385805753,2.68955681,2509.0,2508.9,3.98572423]
[1749385806061,3.19828932,2509.0,2508.9,3.98572423]
[1749385807362,2.68955681,2509.0,2508.9,3.98572423]
[1749385808424,0.55,2509.0,2508.9,3.98572423]
[1749385808626,1.49993735,2509.0,2508.9,3.98572423]
[1749385809029,2.68735904,2509.0,2508.9,3.98572423]
[1749385814058,2.68735904,2509.0,2508.8,3.98588174]
[1749385814371,2.61817325,2508.9,2508.8,3.98588174]
[1749385814870,0.55,2508.8,2508.6,3.98627998]
[1749385815057,0.55,2508.8,2508.6,3.98621248]
[1749385815256,1.49885783,2508.7,2508.6,3.98621248]
[1749385818762,1.87930937,2508.7,2508.6,3.98621248]
[1749385821569,0.55,2508.6,2508.4,3.98650884]
[1749385821770,0.55,2508.4,2508.2,3.92267689]
[1749385821956,0.77664578,2508.4,2508.3,3.98673796]
[1749385822285,1.72461454,2508.4,2508.3,3.98673796]
[1749385822591,1.3176,2508.3,2508.2,3.92267689]
[1749385822790,0.55,2508.2,2507.9,0.1698543]
[1749385823145,0.55,2508.2,2507.9,4.15710053]
[1749385823450,0.55,2508.0,2507.9,0.1698543]
[1749385823669,1.49753685,2508.0,2507.9,0.1698543]
[1749385823981,1.49753685,2508.0,2507.9,4.15725411]
[1749385824184,2.37411054,2508.0,2507.9,0.1698543]
[1749385825260,2.37411054,2508.0,2507.9,4.15725411]
[1749385826389,3.17631054,2508.0,2507.9,0.1698543]
[1749385827294,3.5090636,2508.0,2507.9,0.1698543]
[1749385828564,3.5090636,2508.0,2507.9,4.15725411]
[1749385830213,2.56152675,2508.0,2507.9,4.15725411]
[1749385830775,3.50722858,2508.0,2507.9,0.1698543]
[1749385835914,4.69465027,2508.0,2507.9,0.1698543]
[1749385836118,3.50722858,2508.0,2507.9,0.1698543]
[1749385836620,2.15502858,2508.0,2507.9,0.1698543]
[1749385836817,1.27845489,2508.0,2507.9,4.15725411]
[1749385837191,1.82845489,2508.0,2507.9,0.1698543]
[1749385837394,2.63725489,2508.0,2507.9,0.1698543]
[1749385839121,3.82467658,2508.0,2507.9,0.1698543]
[1749385839321,2.63725489,2508.0,2507.9,0.1698543]
[1749385839498,4.22399927,2508.0,2507.9,4.15725411]
[1749385839699,5.88399927,2508.0,2507.9,4.15725411]
[1749385840712,5.88399927,2508.0,2507.9,0.1698543]
[1749385842498,5.88399927,2508.0,2507.9,4.15725411]
[1749385842722,5.88399927,2508.0,2507.9,0.1698543]
[1749385843225,5.88399927,2508.0,2507.9,4.15725411]
[1749385843427,5.88399927,2508.0,2507.9,0.1698543]
[1749385844139,7.07142096,2508.0,2507.9,0.1698543]
[1749385844350,5.88399927,2508.0,2507.9,0.1698543]
[1749385844519,7.07142096,2508.0,2507.9,0.1698543]
[1749385846022,7.06777862,2508.0,2507.9,0.1698543]
[1749385846643,9.87197434,2508.0,2507.9,0.1698543]
[1749385847315,5.88473352,2508.0,2507.9,0.1698543]
[1749385848245,0.55,2507.1,2506.7,3.98925621]
[1749385848409,0.55,2507.1,2506.9,3.98896838]
[1749385848410,3.15643608,2507.1,2506.9,3.98896838]
[1749385848807,3.15643608,2507.1,2507.0,3.99232027]
[1749385849848,4.53095275,2507.1,2507.0,0.003489]
[1749385851450,8.51962492,2507.1,2507.0,0.003489]
[1749385851815,10.47693888,2507.1,2507.0,0.003489]
[1749385852154,9.29342492,2507.1,2507.0,0.003489]
[1749385854268,10.87144353,2507.1,2507.0,0.003489]
[1749385854474,9.29342492,2507.1,2507.0,0.003489]
[1749385856017,5.30475275,2507.1,2507.0,0.003489]
[1749385856139,6.4874275,2507.1,2507.0,0.003489]
[1749385856339,9.29342492,2507.1,2507.0,0.003489]
[1749385856841,15.78342492,2507.1,2507.0,0.003489]
[1749385859561,11.79475275,2507.1,2507.0,0.003489]
[1749385859768,3.64475275,2507.1,2507.0,0.003489]
[1749385859966,11.93382936,2507.1,2507.0,0.003489]
[1749385860171,10.75198914,2507.1,2507.0,0.003489]
[1749385860496,11.93390865,2507.1,2507.0,0.003489]
[1749385861767,2.46110865,2507.1,2507.0,0.003489]
[1749385861969,1.27918914,2507.1,2507.0,3.99232027]
[1749385862272,1.82918914,2507.1,2507.0,3.99232027]
[1749385862461,1.27918914,2507.1,2507.0,3.99232027]
[1749385863160,1.82918914,2507.1,2507.0,0.003489]
[1749385863394,2.17930805,2507.1,2507.0,3.99232027]
[1749385863690,2.17930805,2507.1,2507.0,0.003489]
[1749385864069,2.17930805,2507.1,2507.0,3.99232027]
[1749385864474,2.17930805,2507.1,2507.0,0.003489]
[1749385864801,6.95518022,2507.1,2507.0,0.003489]
[1749385864982,8.13709973,2507.1,2507.0,0.003489]
[1749385865395,3.30130805,2507.1,2507.0,0.003489]
[1749385865603,2.95118914,2507.1,2507.0,3.99232027]
[1749385866107,0.33275306,2507.1,2507.0,3.99232027]
[1749385866311,0.33275306,2507.1,2507.0,4.75372027]
[1749385873271,0.88275306,2507.1,2507.0,4.75372027]
[1749385882672,0.88275306,2507.1,2507.0,3.99232027]
[1749385883496,1.83018176,2507.1,2507.0,3.99232027]
[1749385883811,0.88275306,2507.1,2507.0,3.99232027]
[1749385884573,1.83029583,2507.1,2507.0,3.99232027]
[1749385884800,0.88275306,2507.1,2507.0,3.99232027]
[1749385885173,1.83027081,2507.1,2507.0,3.99232027]
[1749385885773,0.88275306,2507.1,2507.0,3.99232027]
[1749385885973,1.83031785,2507.1,2507.0,3.99232027]
[1749385889520,2.90124159,2507.1,2507.0,0.003489]
[1749385891001,4.0831611,2507.1,2507.0,0.003489]
[1749385891581,2.90124159,2507.1,2507.0,0.003489]
[1749385893000,4.44386921,2507.1,2507.0,3.99232027]
[1749385893300,3.50731785,2507.1,2507.0,3.99232027]
[1749385894148,1.83031785,2507.1,2507.0,3.99232027]
[1749385895606,1.83031785,2507.1,2507.0,4.82392027]
[1749385897683,1.83136829,2507.1,2507.0,4.82392027]
[1749385902795,1.83136829,2507.1,2507.0,0.003489]
[1749385902968,2.37694202,2507.1,2507.0,3.99232027]
[1749385903899,2.37694202,2507.1,2507.0,0.003489]
[1749385904200,8.7272328,2507.1,2507.0,0.003489]
[1749385904398,7.14921419,2507.1,2507.0,0.003489]
[1749385904894,7.51981587,2507.1,2507.0,0.003489]
[1749385905098,9.8868577,2507.1,2507.0,0.003489]
[1749385905257,7.51982978,2507.1,2507.0,0.003489]
[1749385905904,7.51982351,2507.1,2507.0,0.003489]
[1749385906093,7.14870073,2507.1,2507.0,0.003489]
[1749385906285,7.51930854,2507.1,2507.0,0.003489]
[1749385906484,7.51930752,2507.1,2507.0,0.003489]
[1749385906689,7.51930682,2507.1,2507.0,0.003489]
[1749385906886,7.5193095,2507.1,2507.0,0.003489]
[1749385907094,9.88633267,2507.1,2507.0,0.003489]
[1749385907773,23.14870073,2507.1,2507.0,0.003489]
[1749385907998,23.518871,2507.1,2507.0,0.003489]
[1749385908206,23.14870073,2507.1,2507.0,0.003489]
[1749385908372,25.51686853,2507.1,2507.0,0.003489]
[1749385908677,25.88703427,2507.1,2507.0,0.003489]
[1749385909387,25.51686853,2507.1,2507.0,0.003489]
[1749385909968,25.88675092,2507.1,2507.0,0.003489]
[1749385910169,25.51686853,2507.1,2507.0,0.003489]
[1749385910368,25.88674262,2507.1,2507.0,0.003489]
[1749385910570,25.88674317,2507.1,2507.0,0.003489]
[1749385910994,25.88674508,2507.1,2507.0,0.003489]
[1749385911166,25.51686853,2507.1,2507.0,0.003489]
[1749385911361,25.88674226,2507.1,2507.0,0.003489]
[1749385911583,25.51686853,2507.1,2507.0,0.003489]
[1749385912179,23.51857616,2507.1,2507.0,0.003489]
[1749385912589,25.88674396,2507.1,2507.0,0.003489]
[1749385912791,25.51686853,2507.1,2507.0,0.003489]
[1749385913200,25.51686853,2507.1,2505.9,0.8132]
[1749385913201,1.3647,2506.7,2505.9,0.8132]
[1749385913505,0.55,2506.4,2505.9,3.99044251]
[1749385913670,0.55,2506.2,2506.0,3.99031889]
[1749385913861,1.83085483,2506.2,2506.0,3.99031889]
[1749385914278,1.83085483,2506.2,2506.0,3.99040693]
[1749385914602,0.88275306,2506.2,2506.1,5.09217429]
[1749385915309,1.8284391,2506.2,2506.1,1.10191054]
[1749385915497,3.25803035,2506.2,2506.1,1.10191054]
[1749385915869,1.8284391,2506.2,2506.1,5.90717429]
[1749385916202,0.88275306,2506.2,2506.1,5.90717429]
[1749385916401,0.33275306,2506.2,2506.1,5.90717429]
[1749385917397,0.88275306,2506.2,2506.1,5.90717429]
[1749385922210,0.88275306,2506.2,2506.1,5.09217429]
[1749385923307,0.88275306,2506.2,2506.1,1.10191054]
[1749385923514,1.44745719,2506.2,2506.1,1.10191054]
[1749385923824,7.17191625,2506.2,2506.1,1.10191054]
[1749385924129,3.18181171,2506.2,2506.1,1.10191054]
[1749385930309,7.17191625,2506.2,2506.1,1.10191054]
[1749385930711,7.17191625,2506.2,2505.4,0.2270889]
[1749385930712,0.55,2505.7,2505.4,0.2270889]
[1749385930951,0.55,2505.5,2505.4,0.2270889]
[1749385931112,1.73462605,2505.6,2505.4,0.2270889]
[1749385931113,0.55,2505.6,2505.4,1.0039889]
[1749385931314,0.88275306,2505.6,2505.4,1.0039889]
[1749385931512,0.88275306,2505.6,2505.4,0.2270889]
[1749385931754,1.3067,2505.5,2505.4,0.2270889]
[1749385932346,3.16825143,2505.5,2505.4,4.21846752]
[1749385932547,2.223,2505.5,2505.4,0.2270889]
[1749385932719,2.223,2505.5,2505.4,4.21846752]
[1749385932916,2.223,2505.5,2505.4,0.2270889]
[1749385933430,2.223,2505.5,2505.4,4.21846752]
[1749385934021,3.1685961,2505.5,2505.4,4.21846752]
[1749385934340,2.223,2505.5,2505.4,4.21846752]
[1749385934543,2.223,2505.5,2505.4,0.2270889]
[1749385934852,3.16851212,2505.5,2505.4,4.21846752]
[1749385935028,2.223,2505.5,2505.4,4.21846752]
[1749385935708,0.55,2505.5,2505.4,4.21846752]
[1749385936219,0.33275306,2505.6,2505.5,3.99121931]
[1749385936552,0.88275306,2505.6,2505.5,3.99121931]
[1749385936858,0.33275306,2505.6,2505.5,3.99121931]
[1749385937569,0.33275306,2505.6,2505.4,4.21838541]
[1749385937857,0.33275306,2505.6,2505.4,4.2183824]
[1749385938070,0.33275306,2505.6,2505.4,0.2270889]
[1749385938230,0.66404837,2505.6,2505.4,0.2270889]
[1749385939142,0.66404837,2505.6,2505.4,4.21843769]
[1749385939342,0.33275306,2505.6,2505.4,4.21843769]
[1749385939745,0.33275306,2505.6,2505.4,0.2270889]
[1749385939969,1.49558105,2505.5,2505.4,0.2270889]
[1749385940251,1.82833411,2505.5,2505.4,0.2270889]
[1749385941160,5.81955342,2505.5,2505.4,0.2270889]
[1749385941352,7.64657513,2505.5,2505.4,0.2270889]
[1749385941651,3.65535582,2505.5,2505.4,0.2270889]
[1749385943139,1.82833411,2505.5,2505.4,4.21846752]
[1749385943342,3.52233411,2505.5,2505.4,0.2270889]
[1749385943927,3.52233411,2505.5,2505.4,4.21846752]
[1749385944364,2.57675306,2505.5,2505.4,4.21846752]
[1749385945930,0.88275306,2505.5,2505.4,4.21846752]
[1749385949832,0.88275306,2505.5,2505.4,5.01966752]
[1749385950069,0.33275306,2505.5,2505.4,5.01966752]
[1749385952380,2.244,2505.8,2505.7,4.79210074]
[1749385952670,7.70353315,2506.3,2506.1,3.99016878]
[1749385952871,0.94732354,2506.2,2506.1,3.99016878]
[1749385953072,2.64132354,2506.2,2506.1,3.99016878]
[1749385953371,3.19132354,2506.2,2506.1,3.99016878]
[1749385953837,0.94732354,2506.2,2506.1,3.99016878]
[1749385954041,2.64132354,2506.2,2506.1,3.99016878]
[1749385954263,3.19132354,2506.2,2506.1,3.99016878]
[1749385955251,3.19132354,2506.2,2506.1,4.74906878]
[1749385955460,1.49732354,2506.2,2506.1,4.74906878]
[1749385955776,0.55,2506.2,2506.1,4.74906878]
[1749385956341,0.55,2506.2,2506.1,3.99016878]
[1749385967314,0.80767531,2506.2,2506.1,3.99016878]
[1749385967674,0.80767531,2506.2,2506.0,3.99032517]
[1749385967675,0.55,2506.1,2506.0,3.99032517]
[1749385972277,2.57675306,2506.3,2506.2,3.99010454]
[1749385972486,3.52358073,2506.3,2506.2,3.99010454]
[1749385972825,2.97358073,2506.3,2506.2,3.99010454]
[1749385973047,0.33275306,2506.3,2506.2,3.99010454]
[1749385973926,0.55,2506.6,2506.5,3.98962696]
[1749385974101,1.83964422,2506.6,2506.5,3.98962696]
[1749385980229,1.83964422,2506.6,2506.3,3.98985048]
[1749385980534,1.49707068,2506.5,2506.4,3.98978309]
[1749385981897,0.94707068,2506.5,2506.4,4.74858309]
[1749385985298,1.693,2506.7,2506.6,3.9894678]
[1749385985496,2.64189153,2506.7,2506.6,3.9894678]
[1749385985720,0.55,2506.6,2506.4,11.25052316]
[1749385985944,0.55,2506.6,2506.5,3.98962696]
[1749385986154,1.49872793,2506.6,2506.4,3.98965497]
[1749385986323,0.94872793,2506.5,2506.4,3.98965497]
[1749385987750,1.49872793,2506.5,2506.4,3.98965497]
[1749385989640,2.62220072,2506.5,2506.4,3.98965497]
[1749385990424,2.30302793,2506.5,2506.4,3.98965497]
[1749385990821,1.49872793,2506.5,2506.4,3.98965497]
[1749385991295,1.3543,2506.4,2506.2,3.99008385]
[1749385991554,1.3543,2506.4,2505.9,23.3485]
[1749385991555,0.55,2506.2,2506.1,3.99019206]
[1749385991755,1.49872793,2506.2,2506.1,3.99019206]
[1749385996673,0.94872793,2506.2,2506.1,3.99019206]
[1749385996976,1.5775406,2506.6,2506.3,3.98994533]
[1749385996977,1.687,2506.4,2506.3,3.98994533]
[1749385997130,3.18440151,2506.4,2506.3,3.98994533]
[1749386000970,1.49740151,2506.4,2506.3,3.98994533]
[1749386005559,1.49740151,2506.4,2506.0,6.507]
[1749386005880,0.94740151,2506.3,2506.2,3.99010454]
[1749386009050,0.55,2506.4,2506.3,3.98994533]
[1749386009249,1.49754395,2506.4,2506.3,3.98994533]
[1749386010374,0.94754395,2506.4,2506.3,3.98994533]
[1749386010705,2.236,2506.7,2506.6,3.9894678]
[1749386010999,3.18338726,2506.7,2506.6,3.9894678]
[1749386011610,0.55,2506.6,2506.5,3.98956065]
[1749386011760,1.49738726,2506.6,2506.5,3.98956065]
[1749386023674,2.80480248,2506.6,2506.5,3.98956065]
[1749386023875,2.68012269,2506.6,2506.5,3.98956065]
[1749386024386,2.80480232,2506.6,2506.5,3.98956065]
[1749386024553,2.80480085,2506.6,2506.5,3.98956065]
[1749386024750,1.49738726,2506.6,2506.5,3.98956065]
[1749386025153,2.68012269,2506.6,2506.5,3.98956065]
[1749386025379,1.49738726,2506.6,2506.5,3.98956065]
[1749386025580,2.68012269,2506.6,2506.5,3.98956065]
[1749386025908,2.8048009,2506.6,2506.5,3.98956065]
[1749386026264,2.80480088,2506.6,2506.5,3.98956065]
[1749386026464,2.80888709,2506.6,2506.5,3.98956065]
[1749386026693,2.6842089,2506.6,2506.5,3.98956065]
[1749386027359,2.80888711,2506.6,2506.5,3.98956065]
[1749386027563,2.6842089,2506.6,2506.5,3.98956065]
[1749386027816,2.80888707,2506.6,2506.5,3.98956065]
[1749386028401,2.80888794,2506.6,2506.5,3.98956065]
[1749386029006,2.6842089,2506.6,2506.5,3.98956065]
[1749386031795,1.49853729,2506.6,2506.5,3.98956065]
[1749386031956,2.6842089,2506.6,2506.5,3.98956065]
[1749386033103,2.1342089,2506.6,2506.5,3.98956065]
[1749386033314,0.94853729,2506.6,2506.5,3.98956065]
[1749386033940,2.1342089,2506.6,2506.5,3.98956065]
[1749386034189,0.94853729,2506.6,2506.5,3.98956065]
[1749386035502,2.1342089,2506.6,2506.5,3.98956065]
[1749386039708,0.55,2506.5,2506.0,3.99034301]
[1749386039879,0.55,2506.3,2506.1,3.99026375]
[1749386040073,0.55,2506.3,2506.2,3.99010454]
[1749386040369,0.55,2506.3,2505.9,3.99052167]
[1749386040370,1.49938392,2506.3,2505.9,3.99052167]
[1749386040573,2.89892063,2506.2,2505.6,10.47906002]
[1749386040799,2.1275406,2506.3,2505.4,0.2270889]
[1749386040800,1.73663671,2506.0,2505.4,0.2270889]
[1749386040983,1.73663671,2505.8,2505.6,3.99095845]
[1749386041169,2.68602063,2505.7,2505.6,3.99095845]
[1749386041606,0.55,2505.7,2505.6,3.99095845]
[1749386041805,1.49930223,2505.7,2505.6,3.99095845]
[1749386044928,0.55,2505.6,2505.5,3.99110013]
[1749386045234,0.55,2505.8,2505.6,3.99104233]
[1749386045444,1.49611136,2505.7,2505.6,3.99104233]
[1749386046537,0.55,2505.7,2505.6,3.99104233]
[1749386050262,0.55,2505.7,2505.4,0.2270889]
[1749386050263,0.55,2505.6,2505.4,0.2270889]
[1749386050763,0.55,2505.8,2505.5,3.99108463]
[1749386051065,0.55,2505.6,2505.5,3.99108463]
[1749386051594,0.88275306,2505.8,2505.6,3.99105235]
[1749386051803,0.9446581,2505.7,2505.6,3.99105235]
[1749386052560,0.88275306,2505.8,2505.5,3.99115305]
[1749386052773,0.55,2505.6,2505.5,3.99115305]
[1749386053501,0.33275306,2505.8,2505.5,3.99115305]
[1749386053713,1.12225306,2505.6,2505.5,3.99115305]
[1749386054067,0.55,2505.5,2505.4,0.2270889]
[1749386054268,0.55,2505.5,2505.4,4.21846752]
[1749386054269,0.88275306,2505.5,2505.4,4.21846752]
[1749386054909,2.55775306,2505.5,2505.4,0.2270889]
[1749386055764,3.34725306,2505.5,2505.4,0.2270889]
[1749386055986,3.68197837,2505.5,2505.4,0.2270889]
[1749386056510,3.68197837,2505.5,2505.4,4.21846752]
[1749386058874,3.68197837,2505.5,2505.4,0.2270889]
[1749386059480,4.62628866,2505.5,2505.4,4.21846752]
[1749386059814,4.62628866,2505.5,2505.4,0.2270889]
[1749386066294,8.61750797,2505.5,2505.4,0.2270889]
[1749386066651,4.62628866,2505.5,2505.4,0.2270889]
[1749386066998,8.61750797,2505.5,2505.4,0.2270889]
[1749386067407,4.62628866,2505.5,2505.4,0.2270889]
[1749386068484,5.80667527,2505.5,2505.4,0.2270889]
[1749386069015,9.79789458,2505.5,2505.4,0.2270889]
[1749386069384,8.61750797,2505.5,2505.4,0.2270889]
[1749386076512,10.19504857,2505.5,2505.4,0.2270889]
[1749386077113,6.20382926,2505.5,2505.4,0.2270889]
[1749386077323,11.10328866,2505.5,2505.4,0.2270889]
[1749386077498,12.68082926,2505.5,2505.4,0.2270889]
[1749386077703,11.10328866,2505.5,2505.4,0.2270889]
[1749386078454,12.68082926,2505.5,2505.4,0.2270889]
[1749386078654,11.10328866,2505.5,2505.4,0.2270889]
[1749386079025,12.68082926,2505.5,2505.4,0.2270889]
[1749386079961,11.10328866,2505.5,2505.4,0.2270889]
[1749386080257,3.49806335,2505.5,2505.4,4.21846752]
[1749386080458,4.68269137,2505.5,2505.4,4.21846752]
[1749386080635,4.68269137,2505.5,2505.4,0.2270889]
[1749386080636,4.13269137,2505.5,2505.4,0.2270889]
[1749386080833,2.46169137,2505.5,2505.4,4.21846752]
[1749386081146,4.13269137,2505.5,2505.4,4.21846752]
[1749386081351,4.68269137,2505.5,2505.4,5.01486752]
[1749386081835,4.13269137,2505.5,2505.4,5.01486752]
[1749386082254,2.94806335,2505.5,2505.4,5.01486752]
[1749386083222,3.49806335,2505.5,2505.4,5.01486752]
[1749386083753,3.50160796,2505.5,2505.4,5.01486752]
[1749386084453,2.95160796,2505.5,2505.4,5.01486752]
[1749386084662,2.00375306,2505.5,2505.4,5.01486752]
[1749386084830,3.50151146,2505.5,2505.4,5.01486752]
[1749386085438,2.55375306,2505.5,2505.4,5.01486752]
[1749386085768,3.50135254,2505.5,2505.4,5.01486752]
[1749386086527,3.50120362,2505.5,2505.4,5.01486752]
[1749386088664,3.50108096,2505.5,2505.4,5.01486752]
[1749386089348,2.95108096,2505.5,2505.4,5.01486752]
[1749386089544,2.00375306,2505.5,2505.4,5.01486752]
[1749386089866,0.33275306,2505.5,2505.4,21.01486752]
[1749386090259,2.221,2506.0,2505.9,3.99058222]
[1749386090476,2.61831929,2506.0,2505.9,3.99058222]
[1749386090676,1.671,2506.0,2505.9,3.99058222]
[1749386091182,1.671,2506.0,2505.9,4.80888222]
[1749386091687,1.1843132,2506.5,2506.4,3.98978614]
[1749386091880,4.68369732,2506.5,2506.4,3.98978614]
[1749386092078,3.49938412,2506.5,2506.4,3.98978614]
[1749386092580,2.94938412,2506.5,2506.4,3.98978614]
[1749386093188,2.94938412,2506.5,2506.2,3.99004404]
[1749386093354,1.49663106,2506.4,2506.2,3.99004404]
[1749386093560,0.94663106,2506.3,2506.2,3.99004404]
[1749386094377,0.55,2506.2,2505.9,4.81000321]
[1749386094716,0.89993841,2506.3,2505.9,0.8195]
[1749386094982,0.55,2506.1,2505.9,3.99043381]
[1749386096103,0.55,2506.1,2505.9,3.99049478]
[1749386096787,0.55,2506.1,2505.7,0.8195]
[1749386096788,0.55,2506.1,2505.7,4.81036417]